[Event "Late-Titled-Tuesday-Blitz-April-30-2024"]
[Site "Chess.com"]
[Date "2024.04.30"]
[Round "3"]
[White "Bilan_Danila"]
[Black "Vincefm"]
[Result "0-1"]
[WhiteElo "2553"]
[BlackElo "2373"]
[TimeControl "180+1"]
[EndTime "14:30:39 PDT"]
[Termination "Vincefm won by checkmate"]

1. d4 {[%clk 0:03:00.9]} 1... Nf6 {[%clk 0:02:58.8]} 2. Nf3 {[%clk 0:03:01.4]}
2... c5 {[%clk 0:02:58.4]} 3. e3 {[%clk 0:03:01.7]} 3... d5 {[%clk 0:02:54.3]}
4. c3 {[%clk 0:03:01.9]} 4... Nc6 {[%clk 0:02:52.5]} 5. Bd3 {[%clk 0:03:02.1]}
5... Bg4 {[%clk 0:02:49.1]} 6. h3 {[%clk 0:03:01.2]} 6... Bh5 {[%clk 0:02:48.4]}
7. Nbd2 {[%clk 0:03:00.9]} 7... e6 {[%clk 0:02:47.7]} 8. g4 {[%clk 0:02:58.4]}
8... Bg6 {[%clk 0:02:46.1]} 9. Bb5 {[%clk 0:02:58.2]} 9... Qc7 {[%clk 0:02:41]}
10. Ne5 {[%clk 0:02:55.4]} 10... Bd6 {[%clk 0:02:34.1]} 11. f4 {[%clk
0:02:50.6]} 11... O-O-O {[%clk 0:01:51.3]} 12. Qa4 {[%clk 0:02:44.2]} 12... Bxe5
{[%clk 0:01:33.3]} 13. fxe5 {[%clk 0:02:37.4]} 13... Ne4 {[%clk 0:01:30.3]} 14.
Nb3 {[%clk 0:02:09.3]} 14... c4 {[%clk 0:01:04.7]} 15. Bxc6 {[%clk 0:02:01.1]}
15... Qxc6 {[%clk 0:01:05.6]} 16. Qxc6+ {[%clk 0:01:56.8]} 16... bxc6 {[%clk
0:01:06.5]} 17. Nd2 {[%clk 0:01:56.9]} 17... h5 {[%clk 0:01:00.5]} 18. gxh5
{[%clk 0:01:42.3]} 18... Rxh5 {[%clk 0:00:59.5]} 19. Nf3 {[%clk 0:01:38.3]}
19... Rdh8 {[%clk 0:00:45.1]} 20. h4 {[%clk 0:01:32.6]} 20... Ng3 {[%clk
0:00:40.3]} 21. Rh3 {[%clk 0:01:31.9]} 21... Nf5 {[%clk 0:00:40]} 22. Bd2 {[%clk
0:01:29.8]} 22... Nxh4 {[%clk 0:00:39.5]} 23. Nxh4 {[%clk 0:01:28.9]} 23... Rxh4
{[%clk 0:00:40.4]} 24. Rxh4 {[%clk 0:01:29.8]} 24... Rxh4 {[%clk 0:00:41.3]} 25.
O-O-O {[%clk 0:01:25.2]} 25... Rh2 {[%clk 0:00:36.2]} 26. b3 {[%clk 0:01:25.5]}
26... cxb3 {[%clk 0:00:34.5]} 27. axb3 {[%clk 0:01:26.4]} 27... Kd7 {[%clk
0:00:32.3]} 28. Kb2 {[%clk 0:01:15.1]} 28... Be4 {[%clk 0:00:31.6]} 29. Kc1
{[%clk 0:01:08.2]} 29... Ke7 {[%clk 0:00:16.5]} 30. Rg1 {[%clk 0:01:06.4]} 30...
g6 {[%clk 0:00:16.2]} 31. c4 {[%clk 0:01:00.5]} 31... Kf8 {[%clk 0:00:15.6]} 32.
cxd5 {[%clk 0:00:50.4]} 32... cxd5 {[%clk 0:00:16.5]} 33. Bb4+ {[%clk
0:00:50.3]} 33... Kg7 {[%clk 0:00:16.8]} 34. Rg3 {[%clk 0:00:44.6]} 34... Rc2+
{[%clk 0:00:16.2]} 35. Kd1 {[%clk 0:00:44.9]} 35... Rb2 {[%clk 0:00:15.8]} 36.
Rh3 {[%clk 0:00:39.6]} 36... Rxb3 {[%clk 0:00:14]} 37. Be7 {[%clk 0:00:39.3]}
37... g5 {[%clk 0:00:14.2]} 38. Bxg5 {[%clk 0:00:36.2]} 38... Rb1+ {[%clk
0:00:14.2]} 39. Kd2 {[%clk 0:00:32.8]} 39... a5 {[%clk 0:00:14.1]} 40. Bf6+
{[%clk 0:00:31.3]} 40... Kg6 {[%clk 0:00:13.6]} 41. Rg3+ {[%clk 0:00:31.6]}
41... Kh5 {[%clk 0:00:10.2]} 42. Rg5+ {[%clk 0:00:32.1]} 42... Kh6 {[%clk
0:00:09.5]} 43. Rg8 {[%clk 0:00:29.4]} 43... Rb2+ {[%clk 0:00:09.1]} 44. Kc3
{[%clk 0:00:28.1]} 44... Re2 {[%clk 0:00:09]} 45. Rg3 {[%clk 0:00:23]} 45... Rg2
{[%clk 0:00:07.9]} 46. Rh3+ {[%clk 0:00:21]} 46... Kg6 {[%clk 0:00:07]} 47. Kb3
{[%clk 0:00:19.9]} 47... Bc2+ {[%clk 0:00:06.2]} 48. Ka3 {[%clk 0:00:20.2]}
48... Bf5 {[%clk 0:00:07]} 49. Rh8 {[%clk 0:00:19.4]} 49... Re2 {[%clk 0:00:06]}
50. Rg8+ {[%clk 0:00:18.4]} 50... Kh5 {[%clk 0:00:05.5]} 51. Rg5+ {[%clk
0:00:18.1]} 51... Kh6 {[%clk 0:00:05.6]} 52. Rg3 {[%clk 0:00:19]} 52... Bd3
{[%clk 0:00:03.4]} 53. Bg5+ {[%clk 0:00:18.8]} 53... Kh5 {[%clk 0:00:02.5]} 54.
Bf4 {[%clk 0:00:19]} 54... Bc4 {[%clk 0:00:03.4]} 55. Rg5+ {[%clk 0:00:04.9]}
55... Kh4 {[%clk 0:00:03.7]} 56. Rg2 {[%clk 0:00:05.5]} 56... Rxg2 {[%clk
0:00:03.4]} 57. e4 {[%clk 0:00:06]} 57... Ra2# {[%clk 0:00:04.3]} 0-1

[Event "Late-Titled-Tuesday-Blitz-April-30-2024"]
[Site "Chess.com"]
[Date "2024.04.30"]
[Round "3"]
[White "Cayse"]
[Black "DeArron_Fox"]
[Result "1-0"]
[WhiteElo "2802"]
[BlackElo "2501"]
[TimeControl "180+1"]
[EndTime "14:30:40 PDT"]
[Termination "Cayse won by resignation"]

1. b3 {[%clk 0:02:55.2]} 1... e5 {[%clk 0:02:58.6]} 2. Bb2 {[%clk 0:02:53.8]}
2... Nc6 {[%clk 0:02:59]} 3. e3 {[%clk 0:02:53.5]} 3... Nf6 {[%clk 0:02:59.5]}
4. Bb5 {[%clk 0:02:49.3]} 4... Bd6 {[%clk 0:02:59.7]} 5. Nf3 {[%clk 0:02:48]}
5... Qe7 {[%clk 0:02:59.3]} 6. d3 {[%clk 0:02:14.6]} 6... O-O {[%clk 0:02:54.3]}
7. Nbd2 {[%clk 0:02:13.8]} 7... a6 {[%clk 0:02:48.9]} 8. Bxc6 {[%clk 0:02:13.3]}
8... dxc6 {[%clk 0:02:49.8]} 9. O-O {[%clk 0:02:12.9]} 9... Re8 {[%clk
0:02:14.4]} 10. Qe2 {[%clk 0:02:10.2]} 10... e4 {[%clk 0:02:00.3]} 11. dxe4
{[%clk 0:02:05.9]} 11... Nxe4 {[%clk 0:01:58.7]} 12. Nxe4 {[%clk 0:02:06.5]}
12... Qxe4 {[%clk 0:01:58.4]} 13. h3 {[%clk 0:02:06.8]} 13... Bf5 {[%clk
0:01:35.4]} 14. Nd4 {[%clk 0:02:00.4]} 14... Qe5 {[%clk 0:00:43.6]} 15. f4
{[%clk 0:01:58.2]} 15... Qe4 {[%clk 0:00:39.5]} 16. Rae1 {[%clk 0:01:49.8]}
16... Bd7 {[%clk 0:00:30]} 17. c4 {[%clk 0:01:40]} 17... c5 {[%clk 0:00:28.5]}
18. Nf3 {[%clk 0:01:39.6]} 18... Bxf4 {[%clk 0:00:26]} 19. Qd1 {[%clk
0:01:22.4]} 19... Bxe3+ {[%clk 0:00:19.2]} 20. Kh1 {[%clk 0:01:21.2]} 20... Bc6
{[%clk 0:00:13.6]} 21. Re2 {[%clk 0:00:56.4]} 21... Rad8 {[%clk 0:00:08.2]} 22.
Qa1 {[%clk 0:00:55.9]} 22... Qd3 {[%clk 0:00:06.2]} 23. Rfe1 {[%clk 0:00:55.5]}
23... Bxf3 {[%clk 0:00:03]} 24. gxf3 {[%clk 0:00:55.7]} 24... Re6 {[%clk
0:00:01.9]} 25. Rg2 {[%clk 0:00:47.6]} 25... f6 {[%clk 0:00:01.2]} 26. Bxf6
{[%clk 0:00:46.3]} 26... Rd7 {[%clk 0:00:01.1]} 27. Bg5 {[%clk 0:00:39.1]} 27...
Rg6 {[%clk 0:00:02]} 28. Rxe3 {[%clk 0:00:36.1]} 28... Qf5 {[%clk 0:00:02.7]}
29. Qe1 {[%clk 0:00:25.7]} 29... h6 {[%clk 0:00:01.7]} 30. Bh4 {[%clk
0:00:18.2]} 30... Qxh3+ {[%clk 0:00:01.7]} 31. Rh2 {[%clk 0:00:18.4]} 31... Qf5
{[%clk 0:00:02]} 32. Bg3 {[%clk 0:00:15.3]} 32... Rd3 {[%clk 0:00:01.4]} 33. Rg2
{[%clk 0:00:08.2]} 33... Rxe3 {[%clk 0:00:01.7]} 34. Qxe3 {[%clk 0:00:08.1]}
34... Qb1+ {[%clk 0:00:02.6]} 35. Kh2 {[%clk 0:00:08.2]} 35... Qf5 {[%clk
0:00:03.5]} 36. Qf4 {[%clk 0:00:07.5]} 36... Qh5+ {[%clk 0:00:03.3]} 37. Kg1
{[%clk 0:00:06.4]} 37... Rf6 {[%clk 0:00:04]} 38. Qxc7 {[%clk 0:00:05.7]} 38...
Qxf3 {[%clk 0:00:03.3]} 39. Qxc5 {[%clk 0:00:04]} 39... Qd1+ {[%clk 0:00:02.5]}
40. Kh2 {[%clk 0:00:03.9]} 40... Qf3 {[%clk 0:00:02]} 41. Qd5+ {[%clk
0:00:03.8]} 41... Qxd5 {[%clk 0:00:01.5]} 42. cxd5 {[%clk 0:00:04.7]} 42... Kf7
{[%clk 0:00:01.8]} 43. d6 {[%clk 0:00:05.2]} 43... Ke8 {[%clk 0:00:01.7]} 44.
Re2+ {[%clk 0:00:05.8]} 44... Kd7 {[%clk 0:00:02.6]} 45. Re7+ {[%clk 0:00:06]}
45... Kc6 {[%clk 0:00:03.5]} 46. Rxg7 {[%clk 0:00:06.2]} 46... Re6 {[%clk
0:00:04.1]} 47. Rc7+ {[%clk 0:00:06.2]} 47... Kb6 {[%clk 0:00:02.6]} 48. d7
{[%clk 0:00:07.1]} 48... Re2+ {[%clk 0:00:03.2]} 49. Kh3 {[%clk 0:00:07.1]}
49... Rd2 {[%clk 0:00:04.1]} 50. Bf4 {[%clk 0:00:07.1]} 50... Rd3+ {[%clk
0:00:03.6]} 51. Kg4 {[%clk 0:00:07.4]} 51... Rd4 {[%clk 0:00:04.1]} 52. Rc8
{[%clk 0:00:05.8]} 52... Rxd7 {[%clk 0:00:04.7]} 53. Rh8 {[%clk 0:00:06.4]}
53... Rg7+ {[%clk 0:00:02.7]} 54. Kf3 {[%clk 0:00:06.5]} 54... Rg1 {[%clk
0:00:01.9]} 55. Rxh6+ {[%clk 0:00:06.9]} 55... Ka5 {[%clk 0:00:01.9]} 56. Rh2
{[%clk 0:00:07.3]} 56... Ra1 {[%clk 0:00:01.6]} 57. Rd2 {[%clk 0:00:07.2]} 57...
Rb1 {[%clk 0:00:01.7]} 58. Bd6 {[%clk 0:00:07.5]} 58... b5 {[%clk 0:00:02.1]}
59. Ke4 {[%clk 0:00:07.7]} 59... Kb6 {[%clk 0:00:02]} 60. Kd3 {[%clk 0:00:07.6]}
60... a5 {[%clk 0:00:02.3]} 61. Be7 {[%clk 0:00:06.6]} 61... Rg1 {[%clk
0:00:02.2]} 62. Kc2 {[%clk 0:00:06.2]} 62... Rg3 {[%clk 0:00:02.1]} 63. Bd6
{[%clk 0:00:06]} 63... Rg4 {[%clk 0:00:01.8]} 64. Kb2 {[%clk 0:00:06.3]} 64...
a4 {[%clk 0:00:02.2]} 65. b4 {[%clk 0:00:06.4]} 65... Rg2 {[%clk 0:00:01.9]} 66.
Rxg2 {[%clk 0:00:05.3]} 66... Kc6 {[%clk 0:00:02.8]} 1-0

[Event "Late-Titled-Tuesday-Blitz-April-30-2024"]
[Site "Chess.com"]
[Date "2024.04.30"]
[Round "3"]
[White "UK_23"]
[Black "HATilay"]
[Result "0-1"]
[WhiteElo "2469"]
[BlackElo "2663"]
[TimeControl "180+1"]
[EndTime "14:30:42 PDT"]
[Termination "HATilay won by resignation"]

1. e4 {[%clk 0:03:00.9]} 1... e6 {[%clk 0:02:55.7]} 2. d4 {[%clk 0:03:00.6]}
2... d5 {[%clk 0:02:54.4]} 3. e5 {[%clk 0:03:01.3]} 3... c5 {[%clk 0:02:52.9]}
4. c3 {[%clk 0:03:02]} 4... Nc6 {[%clk 0:02:51.9]} 5. Nf3 {[%clk 0:03:02.7]}
5... Qb6 {[%clk 0:02:45.6]} 6. Be2 {[%clk 0:03:02.2]} 6... Nge7 {[%clk
0:02:29.2]} 7. Na3 {[%clk 0:03:00.2]} 7... Nf5 {[%clk 0:02:28.2]} 8. Nc2 {[%clk
0:03:00.3]} 8... cxd4 {[%clk 0:02:07.8]} 9. cxd4 {[%clk 0:02:59.6]} 9... Be7
{[%clk 0:02:05.6]} 10. a3 {[%clk 0:02:55.2]} 10... O-O {[%clk 0:02:04.4]} 11.
O-O {[%clk 0:02:54.4]} 11... Bd7 {[%clk 0:01:55.3]} 12. b4 {[%clk 0:02:52.9]}
12... Rfc8 {[%clk 0:01:46.3]} 13. Bb2 {[%clk 0:02:52.7]} 13... a6 {[%clk
0:01:43.4]} 14. g3 {[%clk 0:02:45.7]} 14... Na7 {[%clk 0:01:39.3]} 15. Kg2
{[%clk 0:02:40.1]} 15... Bb5 {[%clk 0:01:35.6]} 16. h4 {[%clk 0:02:28.6]} 16...
Bxe2 {[%clk 0:01:21.4]} 17. Qxe2 {[%clk 0:02:29.5]} 17... Qb5 {[%clk 0:01:21.2]}
18. Qd2 {[%clk 0:02:24.7]} 18... Rc7 {[%clk 0:00:48.7]} 19. Ne3 {[%clk
0:02:14.8]} 19... Rac8 {[%clk 0:00:32.3]} 20. Nxf5 {[%clk 0:02:09.2]} 20... exf5
{[%clk 0:00:32.5]} 21. Rac1 {[%clk 0:02:08.6]} 21... Rc4 {[%clk 0:00:24]} 22. h5
{[%clk 0:01:55.4]} 22... h6 {[%clk 0:00:17.9]} 23. Qf4 {[%clk 0:01:54.9]} 23...
Qd7 {[%clk 0:00:17]} 24. Rxc4 {[%clk 0:01:51.1]} 24... Rxc4 {[%clk 0:00:16.2]}
25. Rc1 {[%clk 0:01:52]} 25... Rxc1 {[%clk 0:00:15.7]} 26. Bxc1 {[%clk
0:01:52.9]} 26... Nb5 {[%clk 0:00:15.8]} 27. Bb2 {[%clk 0:01:51.6]} 27... Bd8
{[%clk 0:00:13.1]} 28. Ne1 {[%clk 0:01:36.9]} 28... Bg5 {[%clk 0:00:11.7]} 29.
Qf3 {[%clk 0:01:34.9]} 29... Nc7 {[%clk 0:00:11.8]} 30. Nd3 {[%clk 0:01:34.3]}
30... Qc6 {[%clk 0:00:11.6]} 31. Nc5 {[%clk 0:01:34.3]} 31... b6 {[%clk
0:00:11.1]} 32. Nb3 {[%clk 0:01:25.5]} 32... Ne6 {[%clk 0:00:11.3]} 33. Qc3
{[%clk 0:01:21]} 33... Qd7 {[%clk 0:00:07.7]} 34. f4 {[%clk 0:01:19.4]} 34...
Be7 {[%clk 0:00:07.7]} 35. Nc1 {[%clk 0:01:15.7]} 35... g5 {[%clk 0:00:07.7]}
36. Nd3 {[%clk 0:01:14.5]} 36... gxf4 {[%clk 0:00:06.7]} 37. gxf4 {[%clk
0:01:15.4]} 37... Kh8 {[%clk 0:00:06.5]} 38. Kf3 {[%clk 0:01:10.2]} 38... Ng7
{[%clk 0:00:06]} 39. Qe1 {[%clk 0:01:01.1]} 39... f6 {[%clk 0:00:04.2]} 40. Qg1
{[%clk 0:00:59.6]} 40... Qe8 {[%clk 0:00:04.5]} 41. Qg6 {[%clk 0:00:58]} 41...
Qxg6 {[%clk 0:00:03.3]} 42. hxg6 {[%clk 0:00:58.9]} 42... Ne6 {[%clk 0:00:02.8]}
43. exf6 {[%clk 0:00:52.3]} 43... Bxf6 {[%clk 0:00:02.5]} 44. Ne5 {[%clk
0:00:53.1]} 44... Bxe5 {[%clk 0:00:02.2]} 45. dxe5 {[%clk 0:00:49.4]} 45... Kg7
{[%clk 0:00:03.1]} 46. Bc3 {[%clk 0:00:46.6]} 46... b5 {[%clk 0:00:03.6]} 47.
Bb2 {[%clk 0:00:45.9]} 47... Kxg6 {[%clk 0:00:04.3]} 48. Bc3 {[%clk 0:00:46.5]}
48... h5 {[%clk 0:00:04.5]} 49. Kg3 {[%clk 0:00:46.3]} 49... Kf7 {[%clk
0:00:04]} 50. Bd2 {[%clk 0:00:45.8]} 50... Kg6 {[%clk 0:00:04.5]} 51. Be3 {[%clk
0:00:45.8]} 51... d4 {[%clk 0:00:05]} 52. Bd2 {[%clk 0:00:46]} 52... d3 {[%clk
0:00:05.1]} 53. Kf3 {[%clk 0:00:44.8]} 53... h4 {[%clk 0:00:05.3]} 54. Be1
{[%clk 0:00:44.6]} 54... Kh5 {[%clk 0:00:05.9]} 55. Bc3 {[%clk 0:00:41.1]} 55...
h3 {[%clk 0:00:05.8]} 56. Kg3 {[%clk 0:00:40.6]} 56... Nxf4 {[%clk 0:00:06.4]}
57. Bd2 {[%clk 0:00:36.3]} 57... Ne6 {[%clk 0:00:06.2]} 58. Kxh3 {[%clk
0:00:36.6]} 58... f4 {[%clk 0:00:06.4]} 59. Bc1 {[%clk 0:00:34]} 59... Kg5
{[%clk 0:00:06.9]} 60. Kg2 {[%clk 0:00:30.5]} 60... Kf5 {[%clk 0:00:07]} 61. Kf3
{[%clk 0:00:30.8]} 61... Kxe5 {[%clk 0:00:07.3]} 62. Bd2 {[%clk 0:00:31.1]}
62... Nd4+ {[%clk 0:00:07.5]} 63. Kf2 {[%clk 0:00:31.7]} 63... Ke4 {[%clk
0:00:08.4]} 64. Kg2 {[%clk 0:00:31]} 64... Nf5 {[%clk 0:00:08.8]} 65. Kf2 {[%clk
0:00:31.2]} 65... Ne3 {[%clk 0:00:09.2]} 66. Bc3 {[%clk 0:00:29.6]} 66... Nc2
{[%clk 0:00:08.6]} 67. Bd2 {[%clk 0:00:29.9]} 67... Nd4 {[%clk 0:00:07.5]} 68.
Bc3 {[%clk 0:00:29.6]} 68... Nf5 {[%clk 0:00:07.2]} 69. Bd2 {[%clk 0:00:29.9]}
69... Ne3 {[%clk 0:00:07.6]} 70. Ke1 {[%clk 0:00:28.5]} 70... Nc4 {[%clk
0:00:07.9]} 71. Bc3 {[%clk 0:00:28.1]} 71... f3 {[%clk 0:00:07.9]} 72. Kf2
{[%clk 0:00:28.4]} 72... d2 {[%clk 0:00:08.4]} 0-1

[Event "Late-Titled-Tuesday-Blitz-April-30-2024"]
[Site "Chess.com"]
[Date "2024.04.30"]
[Round "3"]
[White "samidescalona2002"]
[Black "Jospem"]
[Result "0-1"]
[WhiteElo "2786"]
[BlackElo "3124"]
[TimeControl "180+1"]
[EndTime "14:30:43 PDT"]
[Termination "Jospem won by checkmate"]

1. d4 {[%clk 0:02:59.7]} 1... Nf6 {[%clk 0:02:59.9]} 2. c4 {[%clk 0:02:59.9]}
2... e6 {[%clk 0:03:00]} 3. Nf3 {[%clk 0:03:00.2]} 3... Bb4+ {[%clk 0:02:59.8]}
4. Bd2 {[%clk 0:02:59.9]} 4... c5 {[%clk 0:02:59.9]} 5. Bxb4 {[%clk 0:02:57.5]}
5... cxb4 {[%clk 0:03:00.8]} 6. a3 {[%clk 0:02:57.7]} 6... bxa3 {[%clk
0:03:00.9]} 7. Rxa3 {[%clk 0:02:54.8]} 7... a5 {[%clk 0:03:01.8]} 8. e3 {[%clk
0:02:53.9]} 8... Na6 {[%clk 0:03:01.8]} 9. Nc3 {[%clk 0:02:54.1]} 9... b6 {[%clk
0:03:01.9]} 10. Be2 {[%clk 0:02:51.7]} 10... O-O {[%clk 0:03:01.9]} 11. O-O
{[%clk 0:02:52.3]} 11... Bb7 {[%clk 0:03:02.5]} 12. b3 {[%clk 0:02:37.8]} 12...
Rc8 {[%clk 0:02:58.6]} 13. Qd2 {[%clk 0:02:28.4]} 13... Qe7 {[%clk 0:02:49.4]}
14. Raa1 {[%clk 0:02:27.9]} 14... Nb4 {[%clk 0:02:48.6]} 15. Rfc1 {[%clk
0:02:22.5]} 15... d5 {[%clk 0:02:47.6]} 16. Ne5 {[%clk 0:02:21.4]} 16... Rfd8
{[%clk 0:02:42.1]} 17. Na4 {[%clk 0:02:11.2]} 17... dxc4 {[%clk 0:02:38.9]} 18.
bxc4 {[%clk 0:02:10.3]} 18... Qc7 {[%clk 0:02:38]} 19. Qe1 {[%clk 0:02:03.3]}
19... Ra8 {[%clk 0:02:01]} 20. c5 {[%clk 0:01:57.7]} 20... bxc5 {[%clk
0:02:01.9]} 21. Nxc5 {[%clk 0:01:57.1]} 21... Qe7 {[%clk 0:02:01.4]} 22. Bf3
{[%clk 0:01:38.8]} 22... Bxf3 {[%clk 0:02:00.1]} 23. Nxf3 {[%clk 0:01:38.7]}
23... Rdc8 {[%clk 0:01:47.3]} 24. Qe2 {[%clk 0:01:34.2]} 24... Nfd5 {[%clk
0:01:46.2]} 25. Qb5 {[%clk 0:01:29.6]} 25... Qa7 {[%clk 0:01:35.7]} 26. Ra3
{[%clk 0:01:14.4]} 26... Rcb8 {[%clk 0:01:34.8]} 27. Qc4 {[%clk 0:01:09]} 27...
h6 {[%clk 0:01:33.5]} 28. h3 {[%clk 0:01:09.2]} 28... Qe7 {[%clk 0:01:20.9]} 29.
Rca1 {[%clk 0:01:05.8]} 29... Nc6 {[%clk 0:01:20.2]} 30. Qa4 {[%clk 0:00:54.6]}
30... Rc8 {[%clk 0:01:19.2]} 31. Qc4 {[%clk 0:00:44.3]} 31... Rab8 {[%clk
0:01:17.1]} 32. Nd2 {[%clk 0:00:29.3]} 32... Ndb4 {[%clk 0:01:12.1]} 33. Ndb3
{[%clk 0:00:17.7]} 33... e5 {[%clk 0:01:12.1]} 34. d5 {[%clk 0:00:14.6]} 34...
Nd8 {[%clk 0:00:52]} 35. Rxa5 {[%clk 0:00:14.8]} 35... Nb7 {[%clk 0:00:52.4]}
36. Rb5 {[%clk 0:00:14]} 36... Nd6 {[%clk 0:00:49.5]} 37. Rxb8 {[%clk
0:00:14.3]} 37... Rxb8 {[%clk 0:00:50.4]} 38. Qe2 {[%clk 0:00:08]} 38... Nxd5
{[%clk 0:00:50.5]} 39. Qd2 {[%clk 0:00:07]} 39... Nf6 {[%clk 0:00:49.8]} 40. Rd1
{[%clk 0:00:07.5]} 40... Nde4 {[%clk 0:00:47.6]} 41. Nxe4 {[%clk 0:00:06.9]}
41... Nxe4 {[%clk 0:00:48.5]} 42. Qc2 {[%clk 0:00:07.6]} 42... Qb4 {[%clk
0:00:43]} 43. Nd2 {[%clk 0:00:06.5]} 43... Nc3 {[%clk 0:00:43.1]} 44. Re1 {[%clk
0:00:05.7]} 44... e4 {[%clk 0:00:42.1]} 45. Nf1 {[%clk 0:00:03.7]} 45... Rd8
{[%clk 0:00:41.5]} 46. Rc1 {[%clk 0:00:04.1]} 46... Rd3 {[%clk 0:00:40.5]} 47.
Ng3 {[%clk 0:00:04.1]} 47... g6 {[%clk 0:00:39]} 48. Kh2 {[%clk 0:00:02.8]}
48... h5 {[%clk 0:00:37.9]} 49. Kg1 {[%clk 0:00:03.7]} 49... Qd6 {[%clk
0:00:35.8]} 50. Ne2 {[%clk 0:00:02.5]} 50... Nxe2+ {[%clk 0:00:19]} 51. Qxe2
{[%clk 0:00:02.2]} 51... Rd2 {[%clk 0:00:19.9]} 52. Qe1 {[%clk 0:00:02.9]} 52...
Qd3 {[%clk 0:00:20.7]} 53. Rb1 {[%clk 0:00:03.5]} 53... Kg7 {[%clk 0:00:20.9]}
54. Ra1 {[%clk 0:00:02.6]} 54... h4 {[%clk 0:00:20.7]} 55. Rc1 {[%clk
0:00:02.9]} 55... g5 {[%clk 0:00:20.4]} 56. Ra1 {[%clk 0:00:02.9]} 56... Kg6
{[%clk 0:00:20.7]} 57. Rc1 {[%clk 0:00:03.5]} 57... f6 {[%clk 0:00:20]} 58. Ra1
{[%clk 0:00:02.9]} 58... Qc2 {[%clk 0:00:20.5]} 59. Qf1 {[%clk 0:00:02.1]} 59...
Re2 {[%clk 0:00:19.6]} 60. Re1 {[%clk 0:00:01.7]} 60... Rd2 {[%clk 0:00:18.7]}
61. Ra1 {[%clk 0:00:02.4]} 61... Qb2 {[%clk 0:00:18.9]} 62. Re1 {[%clk
0:00:03.3]} 62... Rc2 {[%clk 0:00:18.9]} 63. Ra1 {[%clk 0:00:03.8]} 63... Rxf2
{[%clk 0:00:19]} 64. Qxf2 {[%clk 0:00:03.2]} 64... Qxa1+ {[%clk 0:00:19.4]} 65.
Kh2 {[%clk 0:00:03.9]} 65... Qe5+ {[%clk 0:00:20.3]} 66. Kg1 {[%clk 0:00:04.5]}
66... Qc3 {[%clk 0:00:18.2]} 67. Qe2 {[%clk 0:00:04.8]} 67... Qd3 {[%clk
0:00:17.7]} 68. Qe1 {[%clk 0:00:05.2]} 68... f5 {[%clk 0:00:17.2]} 69. g3 {[%clk
0:00:02.9]} 69... hxg3 {[%clk 0:00:16.5]} 70. Qxg3 {[%clk 0:00:03.8]} 70... f4
{[%clk 0:00:17.1]} 71. Qg4 {[%clk 0:00:03]} 71... Qxe3+ {[%clk 0:00:17.5]} 72.
Kg2 {[%clk 0:00:02.7]} 72... f3+ {[%clk 0:00:16.5]} 73. Kg3 {[%clk 0:00:02.6]}
73... Qg1# {[%clk 0:00:16.8]} 0-1